bitfinex/quotes_SOLUSD_20250731
["timestamp","ask_amount","ask_price","bid_price","bid_amount"]
[1753986234597,9.93993767,176.61,176.6,43.34]
[1753986234812,10.59993767,176.61,176.6,43.34]
[1753986235004,16.2621312,176.61,176.6,43.34]
[1753986235315,16.2621312,176.61,176.58,0.06]
[1753986235491,9.93993767,176.59,176.58,0.06]
[1753986235999,10.59993767,176.59,176.58,0.06]
[1753986236203,9.93993767,176.59,176.58,0.06]
[1753986236806,10.59993767,176.59,176.58,0.06]
[1753986236997,16.26277248,176.59,176.58,0.06]
[1753986242403,16.26277248,176.59,176.58,1e-08]
[1753986243309,16.26277248,176.59,176.56,0.06]
[1753986243310,26.0,176.57,176.56,0.06]
[1753986243505,36.6478722,176.57,176.56,0.06]
[1753986243723,37.3078722,176.57,176.56,0.06]
[1753986245409,42.97134844,176.57,176.56,1e-08]
[1753986245748,52.91128611,176.57,176.54,1e-08]
[1753986245915,19.87987534,176.55,176.54,1e-08]
[1753986246110,20.58789006,176.55,176.54,1e-08]
[1753986246314,21.29789006,176.55,176.54,1e-08]
[1753986246519,20.58789006,176.55,176.54,1e-08]
[1753986246723,10.64795239,176.55,176.54,1e-08]
[1753986246925,0.70801472,176.55,176.54,1e-08]
[1753986247248,20.58987534,176.55,176.54,1e-08]
[1753986247422,26.25399315,176.55,176.52,0.06]
[1753986247618,9.93993767,176.53,176.52,0.06]
[1753986248206,10.64993767,176.53,176.52,0.06]
[1753986249308,9.93993767,176.54,176.52,0.71]
[1753986249504,9.93993767,176.54,176.52,0.06]
[1753986249707,9.93993767,176.55,176.53,0.65]
[1753986249908,5.66287935,176.59,176.54,0.65]
[1753986250155,5.66287935,176.59,176.55,0.65]
[1753986250156,9.93993767,176.57,176.55,0.65]
[1753986250315,9.93993767,176.56,176.55,0.65]
[1753986250514,9.93993767,176.57,176.55,0.65]
[1753986250820,9.93993767,176.57,176.56,0.65]
[1753986251132,0.70765398,176.64,176.57,16.78468397]
[1753986251308,15.60142721,176.64,176.59,9.93993767]
[1753986251513,15.60142721,176.64,176.58,43.80013135]
[1753986251514,9.93993767,176.62,176.6,0.65]
[1753986252039,9.93993767,176.63,176.6,0.65]
[1753986252330,0.03,176.65,176.63,16.78468397]
[1753986252514,0.03,176.65,176.64,69.60462164]
[1753986252713,0.03,176.65,176.64,60.31468397]
[1753986252920,0.03,176.65,176.64,70.25462164]
[1753986253737,0.03,176.65,176.64,60.31468397]
[1753986254036,0.03,176.65,176.64,43.49]
[1753986255147,0.03,176.65,176.63,26.0]
[1753986255349,0.03,176.65,176.64,42.82]
[1753986255826,0.03,176.65,176.64,43.47]
[1753986257214,0.03,176.65,176.64,42.82]
[1753986257422,10.67993767,176.65,176.63,42.74]
[1753986257619,9.93993767,176.64,176.63,42.74]
[1753986257818,9.93993767,176.64,176.58,0.65]
[1753986258029,9.93993767,176.61,176.59,59.50468397]
[1753986258237,9.93993767,176.62,176.59,60.15468397]
[1753986258640,9.93993767,176.61,176.59,60.15468397]
[1753986258826,0.74,176.65,176.59,60.15468397]
[1753986259028,9.93993767,176.62,176.59,60.15468397]
[1753986261045,9.93993767,176.63,176.6,0.65]
[1753986261222,9.93993767,176.63,176.59,59.50468397]
[1753986261428,9.93993767,176.63,176.61,0.65]
[1753986261745,9.96993767,176.65,176.62,43.27]
[1753986261937,9.96993767,176.65,176.63,0.65]
[1753986262252,9.93993767,176.64,176.62,42.62]
[1753986262431,9.93993767,176.63,176.6,0.65]
[1753986262629,9.93993767,176.63,176.61,43.23]
[1753986263027,9.96993767,176.65,176.61,42.58]
[1753986263231,9.96993767,176.65,176.62,0.65]
[1753986263538,9.96993767,176.65,176.63,0.65]
[1753986263739,9.96993767,176.65,176.64,42.58]
[1753986264238,9.96993767,176.65,176.6,26.0]
[1753986264239,16.34084907,176.65,176.6,26.0]
[1753986264424,9.93993767,176.62,176.61,42.58]
[1753986264924,9.93993767,176.62,176.61,42.56]
[1753986265432,15.60181061,176.62,176.59,26.0]
[1753986265638,6.37187294,176.62,176.6,42.54]
[1753986265840,9.93993767,176.61,176.6,42.54]
[1753986266222,9.93993767,176.61,176.56,16.78468397]
[1753986266440,9.93993767,176.59,176.57,42.54]
[1753986267145,9.93993767,176.59,176.58,42.52]
[1753986267341,9.93993767,176.59,176.54,0.06]
[1753986267548,9.93993767,176.56,176.55,42.52]
[1753986269433,9.93993767,176.56,176.55,42.48]
[1753986269824,9.93993767,176.57,176.55,42.48]
[1753986270947,5.66345261,176.58,176.55,42.48]
[1753986271128,9.93993767,176.56,176.55,42.48]
[1753986272839,5.66370245,176.57,176.55,42.48]
[1753986272840,15.60364012,176.57,176.55,42.48]
[1753986273252,9.93993767,176.56,176.55,42.48]
[1753986274040,15.60364012,176.57,176.55,42.48]
[1753986274756,6.37319776,176.58,176.55,42.48]
[1753986275047,15.60360945,176.57,176.55,42.48]
[1753986275259,15.60360945,176.57,176.54,0.06]
[1753986275260,9.93993767,176.56,176.54,0.06]
[1753986275458,10.64795239,176.55,176.54,0.06]
[1753986275755,10.63993767,176.55,176.54,42.36]
[1753986276333,10.63993767,176.55,176.54,0.06]
[1753986276955,16.30405548,176.55,176.54,0.06]
[1753986284658,26.24399315,176.55,176.54,0.06]
[1753986285646,26.24399315,176.55,176.52,0.06]
[1753986285964,15.6046972,176.53,176.52,0.06]
[1753986286374,16.3046972,176.53,176.52,0.06]
[1753986287866,16.3046972,176.53,176.52,1e-08]
[1753986288450,73.25127999,176.53,176.49,0.06]
[1753986288651,9.93993767,176.5,176.49,0.06]
[1753986289057,10.63993767,176.5,176.49,0.06]
[1753986289856,16.30566004,176.5,176.49,0.06]
[1753986290059,15.60566004,176.5,176.49,0.06]
[1753986290752,6.37332193,176.52,176.49,0.76]
[1753986290946,6.07280774,176.51,176.5,0.7]
[1753986291442,11.73789781,176.52,176.5,0.7]
[1753986291639,6.07280774,176.51,176.49,0.06]
[1753986291948,6.07280774,176.5,176.49,0.06]
[1753986292478,13.55383077,176.5,176.49,0.06]
[1753986293048,7.48102303,176.5,176.49,0.06]
[1753986293447,6.07280774,176.5,176.49,0.76]
[1753986293845,6.07280774,176.51,176.49,0.76]
[1753986294042,0.70809494,176.53,176.49,0.76]
[1753986294243,6.07280774,176.51,176.49,0.76]
[1753986294668,0.70809494,176.53,176.5,0.7]
[1753986294871,9.92125228,176.56,176.51,9.89125228]
[1753986295251,9.92125228,176.56,176.52,0.7]
[1753986295453,9.92125228,176.56,176.53,0.7]
[1753986295954,15.58527318,176.56,176.53,0.7]
[1753986296161,15.58527318,176.56,176.54,0.7]
[1753986296362,9.92125228,176.56,176.54,0.7]
[1753986296668,0.03,176.56,176.55,0.7]
[1753986296843,0.03,176.56,176.55,10.59125228]
[1753986297043,0.03,176.56,176.55,0.7]
[1753986301055,0.03,176.56,176.55,10.59125228]
[1753986301560,0.03,176.56,176.55,16.54586949]
[1753986302071,0.03,176.56,176.55,10.88175168]
[1753986302653,0.03,176.56,176.55,0.9904994]
[1753986305276,0.03,176.56,176.55,0.99053127]
[1753986305470,0.03,176.56,176.55,10.88178355]
[1753986305667,0.03,176.56,176.55,33.33058533]
[1753986306479,0.03,176.56,176.55,27.66646752]
[1753986306860,0.03,176.56,176.55,33.33058533]
[1753986307173,0.03,176.56,176.55,27.66646752]
[1753986307360,0.03,176.56,176.55,33.33058533]
[1753986310771,0.03,176.56,176.55,26.96646752]
[1753986311353,0.03,176.56,176.55,27.66646752]
[1753986312259,0.03,176.56,176.55,33.33058533]
[1753986315097,0.03,176.56,176.55,64.69933305]
[1753986315299,0.03,176.56,176.54,56.3]
[1753986315459,0.03,176.56,176.55,41.96]
[1753986315658,0.03,176.56,176.52,17.13526462]
[1753986315659,5.66411781,176.55,176.52,0.06]
[1753986315985,6.37213253,176.55,176.53,41.96]
[1753986316189,6.37213253,176.55,176.52,0.06]
[1753986316190,0.7,176.54,176.52,0.06]
[1753986316682,0.7,176.53,176.52,0.06]
[1753986316860,6.39383667,176.56,176.52,0.06]
[1753986317181,6.07169802,176.53,176.52,0.06]
[1753986317387,6.07169802,176.53,176.52,42.02]
[1753986318787,9.89416731,176.53,176.52,42.02]
[1753986320477,0.03,176.56,176.53,16.78468397]
[1753986320678,0.03,176.56,176.54,52.14474692]
[1753986320878,0.03,176.56,176.54,52.55416731]
[1753986321087,0.03,176.56,176.54,51.85416731]
[1753986321464,0.03,176.56,176.54,41.96]
[1753986322073,0.03,176.56,176.54,51.85416731]
[1753986322473,0.03,176.56,176.54,52.55416731]
[1753986322693,0.03,176.56,176.54,51.85416731]
[1753986323377,0.03,176.56,176.54,52.55416731]
[1753986323992,0.03,176.56,176.55,9.89416731]
[1753986324490,0.03,176.56,176.54,51.85416731]
[1753986325986,0.03,176.56,176.54,41.96]
[1753986326168,0.73,176.56,176.54,41.96]
[1753986326368,0.73,176.56,176.55,41.94]
[1753986327384,10.62416731,176.56,176.55,41.94]
[1753986327971,0.73,176.56,176.55,41.94]
[1753986328368,6.393797,176.56,176.55,41.94]
[1753986328779,0.73,176.56,176.55,41.94]
[1753986330592,0.03,176.56,176.55,41.94]
[1753986333490,0.03,176.56,176.55,52.53416731]
[1753986333984,0.03,176.56,176.55,58.19828512]
[1753986334379,0.03,176.56,176.55,42.64]
[1753986334577,0.03,176.56,176.55,41.94]
[1753986335079,0.03,176.56,176.55,52.54416731]
[1753986335285,0.03,176.56,176.55,58.20828512]
[1753986335894,0.03,176.56,176.55,75.28346849]
[1753986336084,0.03,176.56,176.55,131.58346849]
[1753986336287,0.03,176.56,176.55,131.29296909]
[1753986336796,0.03,176.56,176.55,141.1871364]
[1753986338086,0.03,176.56,176.55,131.29296909]
[1753986338921,0.03,176.56,176.55,127.46231606]
[1753986339094,1e-08,176.58,176.56,16.78468397]
[1753986339397,500.0,176.62,176.61,42.78468397]
[1753986339696,500.0,176.62,176.61,91.47819825]
[1753986340383,500.0,176.62,176.61,90.76819825]
[1753986341075,500.0,176.62,176.61,96.43039178]
[1753986341303,500.0,176.62,176.61,96.41039178]
[1753986341876,500.0,176.62,176.61,54.51039178]
[1753986342076,500.0,176.62,176.61,96.41039178]
[1753986342800,500.0,176.62,176.61,48.4468775]
[1753986343100,500.0,176.62,176.61,96.41039178]
[1753986343303,500.0,176.62,176.61,90.74819825]
[1753986343518,500.0,176.62,176.61,48.4468775]
[1753986343678,500.0,176.62,176.61,97.12039178]
[1753986344579,500.0,176.62,176.61,96.41039178]
[1753986345583,500.0,176.62,176.61,97.12039178]
[1753986346094,500.0,176.62,176.61,96.41039178]
[1753986346612,500.68,176.62,176.61,41.88]
[1753986346802,500.68,176.62,176.61,47.94351428]
[1753986347912,500.68,176.62,176.61,53.60570781]
[1753986348112,500.0,176.62,176.61,53.60570781]
[1753986349400,500.0,176.62,176.61,97.10039178]
[1753986349589,500.0,176.62,176.61,127.40039178]
[1753986350716,469.72890427,176.62,176.61,127.40039178]
[1753986350910,313.05202096,176.62,176.61,127.40039178]
[1753986351102,235.85041377,176.62,176.61,127.40039178]
[1753986351299,224.14690444,176.62,176.61,137.40039178]
[1753986351601,138.52016375,176.62,176.61,137.40039178]
[1753986351811,0.03,176.65,176.64,42.78468397]
[1753986352010,0.03,176.67,176.65,16.78468397]
[1753986352221,0.03,176.67,176.66,71.06136208]
[1753986352390,0.03,176.67,176.66,71.77136208]
[1753986353308,0.03,176.67,176.66,64.9978478]
[1753986353513,0.71,176.67,176.66,0.28964955]
[1753986353707,0.71,176.67,176.66,41.86]
[1753986358015,0.03,176.67,176.66,58.93430167]
[1753986359416,0.71,176.67,176.66,58.93430167]
[1753986360108,0.03,176.67,176.66,58.93430167]
[1753986360310,0.03,176.67,176.66,64.99781595]
[1753986360508,0.03,176.67,176.66,58.93430167]
[1753986360710,0.71,176.67,176.66,58.93430167]
[1753986361513,0.71,176.67,176.66,67.82]
[1753986362118,0.03,176.67,176.66,96.32878921]
[1753986362420,0.71,176.67,176.66,67.82]
[1753986364921,0.03,176.67,176.66,67.82]
[1753986365221,0.73,176.67,176.65,0.2896341]
[1753986365423,6.06351428,176.66,176.65,26.0]
[1753986365612,6.76351428,176.66,176.65,67.82]
[1753986366023,0.7,176.66,176.65,67.82]
[1753986368034,6.09351428,176.67,176.65,67.82]
[1753986368035,0.73,176.67,176.65,67.82]
[1753986368907,0.03,176.67,176.65,67.82]
[1753986369111,0.03,176.67,176.65,74.16088724]
[1753986369327,0.03,176.67,176.65,80.22440152]
[1753986369530,0.03,176.67,176.65,38.40440152]
[1753986369823,0.03,176.67,176.66,41.8]
[1753986370201,0.03,176.67,176.66,47.46059096]
[1753986370406,0.03,176.67,176.66,53.52410524]
[1753986371541,0.03,176.67,176.66,54.20410524]
[1753986372016,0.03,176.67,176.66,70.98878921]
[1753986372213,0.03,176.67,176.66,86.08878921]
[1753986373922,0.03,176.67,176.66,80.02527493]
[1753986374117,0.03,176.67,176.66,86.08878921]
[1753986374733,0.03,176.67,176.66,92.15230349]
[1753986376836,0.03,176.67,176.66,92.44195305]
[1753986377035,0.03,176.67,176.66,86.35843877]
[1753986377513,0.03,176.67,176.66,85.67843877]
[1753986377908,0.03,176.67,176.66,86.35843877]
[1753986379508,0.03,176.67,176.66,43.89843877]
[1753986379714,0.03,176.67,176.66,111.65843877]
[1753986379913,0.03,176.67,176.66,111.36878921]
[1753986380727,0.03,176.67,176.66,92.11230349]
[1753986380926,0.03,176.67,176.66,86.33840691]
[1753986381132,0.03,176.67,176.66,92.40192119]
[1753986383137,1e-08,176.67,176.66,92.40192119]
[1753986383341,0.1,176.71,176.66,92.40192119]
[1753986383342,0.1,176.71,176.69,16.78468397]
[1753986383530,0.1,176.71,176.7,64.89752746]
[1753986383842,0.7,176.76,176.73,42.78468397]
[1753986384013,0.8,176.74,176.73,105.68819825]
[1753986384825,0.1,176.74,176.73,105.68819825]
[1753986385025,0.1,176.74,176.73,106.36819825]
[1753986385728,0.1,176.74,176.73,112.02654714]
[1753986387142,0.1,176.74,176.73,70.28654714]
[1753986387321,0.1,176.74,176.73,111.63560434]
[1753986387638,0.1,176.74,176.73,111.34654714]
[1753986387825,0.1,176.74,176.73,112.02654714]
[1753986388538,0.1,176.74,176.73,111.34654714]
[1753986389235,0.1,176.74,176.73,43.60654714]
[1753986389439,0.8,176.74,176.73,56.82]
[1753986389737,0.8,176.74,176.73,41.72]
[1753986389945,0.1,176.74,176.73,70.90654714]
[1753986390331,0.03,176.77,176.76,42.78468397]
[1753986390533,0.03,176.77,176.76,111.73171253]
[1753986390731,0.03,176.77,176.76,112.41171253]
[1753986391119,0.03,176.79,176.76,118.06910107]
[1753986391314,0.03,176.79,176.78,22.84819825]
[1753986391639,0.03,176.79,176.78,64.54819825]
[1753986391831,0.03,176.79,176.78,73.76351428]
[1753986391832,0.73,176.79,176.78,73.76351428]
[1753986392626,0.03,176.79,176.78,73.76351428]
[1753986393428,0.03,176.79,176.78,79.42026278]
[1753986393642,0.03,176.79,176.78,96.20494675]
[1753986394156,0.03,176.79,176.78,70.49360386]
[1753986394446,0.03,176.79,176.78,86.31360386]
[1753986395237,0.03,176.79,176.78,85.59360386]
[1753986396449,0.03,176.79,176.78,86.31360386]
[1753986396844,1e-08,176.79,176.78,86.31360386]
[1753986399348,1e-08,176.79,176.78,44.61360386]
[1753986399666,1e-08,176.79,176.78,86.29360386]
[1753986400164,1e-08,176.79,176.78,85.57360386]
[1753986400461,1e-08,176.79,176.78,86.29360386]
[1753986400853,1e-08,176.79,176.78,85.57360386]
[1753986401255,1e-08,176.79,176.78,86.29360386]
[1753986402055,1e-08,176.79,176.78,85.57360386]
[1753986404277,1e-08,176.79,176.78,86.29360386]
[1753986405186,1e-08,176.79,176.78,85.57360386]
[1753986406064,1e-08,176.79,176.78,86.29360386]
[1753986408173,1e-08,176.79,176.78,43.89360386]
[1753986408476,1e-08,176.79,176.78,85.53360386]
[1753986408690,1e-08,176.79,176.78,43.89360386]
[1753986408853,1e-08,176.79,176.78,85.51360386]
[1753986409455,0.71000001,176.79,176.78,5.94540561]
[1753986409864,0.71000001,176.79,176.78,41.62]
[1753986411456,6.77351429,176.79,176.77,0.06]
[1753986411683,6.06351428,176.78,176.77,0.06]
[1753986411985,6.77351428,176.78,176.77,41.68]
[1753986414968,0.71,176.78,176.77,41.68]
[1753986415674,6.77351428,176.78,176.77,41.68]
[1753986417676,1e-08,176.79,176.77,47.74351428]
[1753986417989,1e-08,176.79,176.77,47.3370685]
[1753986418165,1e-08,176.79,176.77,53.40058278]
[1753986418483,0.71000001,176.79,176.77,53.40058278]
[1753986418994,6.06351428,176.78,176.77,0.06]
[1753986419192,6.06351428,176.78,176.77,41.66]
[1753986419484,0.71,176.78,176.77,47.3170685]
[1753986419886,0.71,176.78,176.77,41.66]
[1753986420272,6.77351428,176.78,176.77,41.66]
[1753986420798,12.43026278,176.78,176.77,0.06]
[1753986421403,6.77351428,176.78,176.77,0.06]
[1753986421686,12.43026278,176.78,176.77,0.06]
[1753986422700,18.49377706,176.78,176.77,0.06]
[1753986422987,6.3667485,176.78,176.75,0.06]
[1753986423166,12.12702856,176.76,176.75,0.06]
[1753986423674,12.83702856,176.76,176.75,0.06]
[1753986424483,7.48068784,176.76,176.75,0.06]
[1753986424788,6.78351429,176.79,176.75,41.64]
[1753986425409,6.78351429,176.79,176.75,48.38351428]
[1753986425410,1e-08,176.79,176.75,48.38351428]
[1753986425699,1e-08,176.79,176.76,6.06351428]
[1753986425999,1e-08,176.79,176.75,42.60878527]
[1753986426000,6.78351429,176.79,176.75,47.99229955]
[1753986426199,0.72,176.78,176.75,41.64]
[1753986426704,6.06351429,176.79,176.75,41.64]
[1753986426867,0.72,176.78,176.75,47.29764854]
[1753986427202,0.72,176.78,176.75,41.64]
[1753986427568,6.06351428,176.78,176.75,41.64]
[1753986427788,0.72,176.77,176.75,41.64]
[1753986427990,6.06351429,176.79,176.75,41.64]
[1753986428191,0.72,176.77,176.75,41.64]
[1753986428577,1e-08,176.79,176.75,53.36121131]
[1753986428792,1e-08,176.79,176.76,6.06351428]
[1753986429690,1e-08,176.79,176.77,6.74351428]
[1753986429892,1e-08,176.79,176.78,41.56]
[1753986430189,1e-08,176.79,176.78,48.59217139]
[1753986430889,1e-08,176.79,176.78,48.18540561]
[1753986431093,1e-08,176.79,176.78,54.24891989]
[1753986431402,1e-08,176.79,176.78,71.03360386]
[1753986431904,1e-08,176.79,176.78,70.74494675]
[1753986432276,1e-08,176.79,176.77,5.65697711]
[1753986432611,0.72000001,176.79,176.78,41.56]
[1753986433315,6.78351429,176.79,176.78,41.56]
[1753986433623,0.72000001,176.79,176.78,41.56]
[1753986433913,1e-08,176.79,176.78,48.59220323]
[1753986434132,1e-08,176.79,176.78,47.62351428]
[1753986434283,1e-08,176.79,176.78,53.28026278]
[1753986434483,1e-08,176.79,176.78,53.96026278]
[1753986434894,1e-08,176.79,176.78,47.62351428]
[1753986435096,1e-08,176.79,176.78,41.56]
[1753986435288,1e-08,176.79,176.78,47.62351428]
[1753986435689,1e-08,176.79,176.78,41.56]
[1753986436084,1e-08,176.79,176.77,11.72047456]
[1753986436085,0.72000001,176.79,176.75,0.06]
[1753986436315,6.06351428,176.77,176.76,41.54]
[1753986436609,1e-08,176.79,176.76,47.60351428]
[1753986436799,1e-08,176.79,176.77,0.68]
[1753986437010,1e-08,176.79,176.78,41.52]
[1753986437312,1e-08,176.79,176.78,42.2]
[1753986438388,1e-08,176.79,176.78,41.52]
[1753986440205,1e-08,176.79,176.77,5.65682503]
[1753986440395,1e-08,176.79,176.78,41.52]
[1753986441195,6.06351429,176.79,176.78,41.52]
[1753986441394,1e-08,176.79,176.78,41.52]
[1753986441825,1e-08,176.79,176.78,47.1767485]
[1753986442026,1e-08,176.79,176.78,41.52]
[1753986442419,1e-08,176.79,176.78,47.1767485]
[1753986444591,1e-08,176.79,176.78,53.92026278]
[1753986445604,1e-08,176.79,176.78,79.92026278]
[1753986446116,1e-08,176.79,176.78,85.80494675]
[1753986447019,1e-08,176.79,176.78,79.74143247]
[1753986447312,1e-08,176.79,176.78,79.02143247]
[1753986447517,1e-08,176.79,176.78,79.70143247]
[1753986447703,1e-08,176.79,176.78,85.76494675]
[1753986448997,1e-08,176.79,176.78,105.02143247]
[1753986449206,0.72000001,176.79,176.78,88.2367485]
[1753986449390,1e-08,176.79,176.78,88.2367485]
[1753986449590,1e-08,176.79,176.78,82.58]
[1753986450519,6.78351429,176.79,176.78,41.48]
[1753986451022,0.72000001,176.79,176.78,41.48]
[1753986451220,6.78351429,176.79,176.78,41.48]
[1753986452415,1e-08,176.79,176.78,41.48]
[1753986454002,6.78351429,176.79,176.78,41.48]
[1753986454825,1e-08,176.79,176.78,41.48]
[1753986456107,6.06351429,176.79,176.78,41.48]
[1753986456517,1e-08,176.79,176.78,41.48]
[1753986457035,1e-08,176.79,176.78,47.1367485]
[1753986457218,1e-08,176.79,176.78,79.91026278]
[1753986459045,1e-08,176.79,176.78,53.91026278]
[1753986459240,1e-08,176.79,176.78,70.69494675]
[1753986460212,1e-08,176.79,176.78,85.79494675]
[1753986460724,1e-08,176.79,176.78,104.98143247]
[1753986461319,1e-08,176.79,176.78,46.7567485]
[1753986461631,1e-08,176.79,176.78,88.1967485]
[1753986461834,1e-08,176.79,176.78,94.97026278]
[1753986462005,1e-08,176.79,176.78,88.9067485]
[1753986462202,0.69000001,176.79,176.78,41.1]
[1753986462433,1e-08,176.79,176.78,82.52]
[1753986463127,1e-08,176.79,176.78,88.1767485]
[1753986463427,1e-08,176.79,176.78,95.23895173]
[1753986463811,1e-08,176.79,176.78,112.0236357]
[1753986464020,1e-08,176.79,176.78,111.73494675]
[1753986465403,1e-08,176.79,176.78,111.02494675]
[1753986465802,1e-08,176.79,176.78,104.96143247]
[1753986466012,1e-08,176.79,176.78,111.31360386]
[1753986466228,1e-08,176.79,176.78,85.73494675]
[1753986466428,1e-08,176.79,176.78,86.02360386]
[1753986467431,1e-08,176.8,176.79,16.78468397]
[1753986467734,1e-08,176.8,176.79,23.55819825]
[1753986469331,1e-08,176.8,176.79,29.21462678]
[1753986470420,0.1,176.83,176.79,58.4556981]
[1753986470623,0.1,176.83,176.82,48.84819825]
[1753986470932,0.1,176.83,176.82,90.22819825]
[1753986471137,0.1,176.83,176.82,90.93819825]
[1753986472541,0.1,176.83,176.82,96.59366708]
[1753986473950,0.1,176.83,176.82,95.88366708]
[1753986474837,0.1,176.83,176.82,110.98366708]
[1753986476717,0.1,176.83,176.82,104.9201528]
[1753986477017,0.1,176.83,176.82,111.27200428]
[1753986477226,0.1,176.83,176.82,111.69366708]
[1753986477723,0.1,176.83,176.82,104.9201528]
[1753986477924,0.1,176.83,176.82,110.98366708]
[1753986479542,0.1,176.83,176.82,104.9201528]
[1753986479719,0.1,176.83,176.82,111.27200428]
[1753986479918,0.1,176.83,176.82,110.98366708]
[1753986480841,0.1,176.83,176.82,111.69366708]
[1753986481927,0.1,176.83,176.82,105.6301528]
[1753986482127,0.1,176.83,176.82,110.98366708]
[1753986482526,0.1,176.83,176.82,111.69366708]
[1753986482943,6.85351428,176.83,176.82,41.1]
[1753986483135,0.79,176.83,176.82,88.07546883]
[1753986483340,0.1,176.83,176.82,88.07546883]
[1753986483544,0.79,176.83,176.82,88.07546883]
[1753986484540,0.1,176.83,176.82,110.92366708]
[1753986484728,0.1,176.83,176.82,111.63366708]
[1753986493041,0.03,176.85,176.82,111.63366708]
[1753986493246,0.69,176.9,176.88,16.78468397]
[1753986493450,0.69,176.93,176.92,26.0]
[1753986493647,0.69,176.93,176.92,73.34351428]
[1753986494178,0.69,176.95,176.92,67.28]
[1753986494329,0.69,176.93,176.92,67.28]
[1753986494524,0.69,176.93,176.92,72.93227221]
[1753986494754,0.69,176.93,176.92,67.28]
[1753986495130,0.69,176.93,176.92,72.93227221]
[1753986495451,0.69,176.93,176.92,67.28]
[1753986497550,0.69,176.93,176.92,67.26]
[1753986497945,0.69,176.93,176.92,26.0]
[1753986498352,0.69,176.93,176.92,67.26]
[1753986498560,0.69,176.93,176.92,26.0]
[1753986498935,6.75351428,176.93,176.92,41.26]
[1753986499858,0.69,176.93,176.92,41.26]
[1753986500162,6.75351428,176.93,176.92,41.26]
[1753986500363,6.75351428,176.93,176.9,26.0]
[1753986500662,5.65168799,176.94,176.9,26.0]
[1753986500663,6.06351428,176.91,176.9,26.0]
[1753986500956,6.06351428,176.91,176.89,15.1]
[1753986500957,6.75351428,176.91,176.89,15.1]
[1753986501153,6.75351428,176.91,176.85,0.28777915]
[1753986501154,6.75351428,176.9,176.85,5.65450947]
[1753986501354,6.06351428,176.88,176.85,31.65450947]
[1753986501571,6.06351428,176.88,176.86,41.24]
[1753986501870,6.75351428,176.88,176.86,41.24]
[1753986502258,0.69,176.87,176.86,41.24]
[1753986502958,6.75351428,176.87,176.86,41.24]
[1753986504555,6.75351428,176.87,176.82,26.0]
[1753986504862,6.75351428,176.87,176.79,23.1511125]
[1753986504863,6.06351428,176.83,176.79,23.1511125]
[1753986505065,6.06351428,176.83,176.82,26.0]
[1753986505253,6.06351428,176.83,176.82,67.24]
[1753986505863,6.06351428,176.83,176.82,41.24]
[1753986506053,6.75351428,176.83,176.8,2.89326318]
[1753986506254,6.06351428,176.81,176.78,0.06]
[1753986506462,6.06351428,176.8,176.79,41.22]
[1753986506647,6.06351428,176.85,176.79,67.22]
[1753986506849,0.69,176.82,176.79,67.22]
[1753986507069,6.06351428,176.81,176.79,67.22]
[1753986507268,6.75351428,176.8,176.78,0.06]
[1753986507457,0.69,176.8,176.79,41.22]
[1753986507653,14.13346168,176.89,176.79,67.50857712]
[1753986507654,6.75351428,176.83,176.79,67.50857712]
[1753986507842,6.75351428,176.83,176.79,73.87470914]
[1753986508486,6.06351428,176.81,176.79,73.16470914]
[1753986508770,6.36112361,176.86,176.79,26.0]
[1753986508771,6.75351428,176.8,176.79,26.0]
[1753986508968,6.75351428,176.8,176.79,67.22]